bitfinex-derivatives/quotes_SOLF0:USTF0_20250624
["timestamp","ask_amount","ask_price","bid_price","bid_amount"]
[1750749875697,6.8373,146.17,146.1,45.35355143]
[1750749875884,38.54815143,146.19,146.1,53.82425249]
[1750749876087,9.50393084,146.18,146.14,6.8381]
[1750749876386,6.8368,146.18,146.14,6.8381]
[1750749876583,6.8372,146.17,146.14,6.8381]
[1750749876787,38.54815143,146.19,146.15,6.8379]
[1750749877897,6.8367,146.18,146.15,6.8379]
[1750749879097,6.8371,146.17,146.14,6.8383]
[1750749879687,38.54815143,146.19,146.13,6.8386]
[1750749879897,2.66965327,146.18,146.1,43.17435143]
[1750749880096,2.66965327,146.17,146.1,43.17435143]
[1750749880401,3.36815143,146.17,146.1,43.17435143]
[1750749880698,2.67005398,146.16,146.1,38.54815143]
[1750749880893,3.36815143,146.17,146.1,38.54815143]
[1750749880894,35.12,146.15,146.1,3.36815143]
[1750749881297,41.9584,146.15,146.11,6.8396]
[1750749881597,35.12,146.15,146.11,6.8396]
[1750749881902,38.48815143,146.15,146.07,46.95885249]
[1750749882100,38.48815143,146.15,146.07,38.48815143]
[1750749882400,6.8388,146.14,146.1,6.84]
[1750749882901,6.8388,146.14,146.11,6.8396]
[1750749884500,35.12,146.15,146.12,6.8389]
[1750749884697,35.12,146.15,146.09,3.36815143]
[1750749885591,35.12,146.15,146.14,6.8384]
[1750749887204,35.12,146.15,146.13,6.8387]
[1750749888205,41.9579,146.15,146.09,3.36815143]
[1750749888394,35.12,146.15,146.09,3.36815143]
[1750749888698,35.12,146.15,146.12,6.8389]
[1750749891006,35.12,146.15,146.09,3.36815143]
[1750749891511,41.9581,146.15,146.12,6.839]
[1750749891895,41.9581,146.15,146.09,3.36815143]
[1750749892605,35.12,146.15,146.09,3.36815143]
[1750749893109,35.12,146.15,146.13,6.8386]
[1750749895507,6.8384,146.14,146.11,6.8395]
[1750749895908,38.48815143,146.15,146.08,10.75300106]
[1750749896203,38.48815143,146.15,146.1,6.8402]
[1750749896809,2.67064311,146.14,146.1,6.8402]
[1750749897103,2.67095079,146.13,146.1,6.8402]
[1750749897309,6.8391,146.13,146.1,6.8402]
[1750749902116,6.8394,146.12,146.09,6.8405]
[1750749903110,6.8394,146.12,146.06,13.03450106]
[1750749903111,6.8399,146.11,146.08,6.8411]
[1750749903309,3.36815143,146.13,146.06,4.5638]
[1750749903616,6.8402,146.11,146.05,11.83885249]
[1750749903817,41.9202,146.11,146.05,11.83885249]
[1750749904119,41.9202,146.11,146.05,3.36815143]
[1750749904317,38.44815143,146.11,146.04,2.3315]
[1750749904505,3.36815143,146.09,146.02,124.69862442]
[1750749904906,6.8415,146.08,146.04,6.8428]
[1750749905411,6.8417,146.07,146.04,6.8428]
[1750749906119,6.8423,146.06,146.01,35.08]
[1750749906615,35.08,146.07,146.02,3.36815143]
[1750749906817,35.08,146.07,146.02,5.62775143]
[1750749907123,35.08,146.07,146.05,6.8425]
[1750749907420,35.08,146.07,146.02,5.62775143]
[1750749908218,38.44815143,146.1,146.02,7.97295143]
[1750749908618,45.28875143,146.1,146.06,6.8418]
[1750749909914,6.8409,146.09,146.06,6.8418]
[1750749910119,38.44815143,146.1,146.02,10.19115143]
[1750749910510,6.8415,146.08,146.02,10.19115143]
[1750749911220,6.8415,146.08,146.04,6.8427]
[1750749911517,6.8415,146.08,146.02,10.19115143]
[1750749911718,6.8409,146.09,146.02,10.19115143]
[1750749912416,45.28855143,146.1,146.02,10.19115143]
[1750749913823,2.6711918,146.09,146.02,3.36815143]
[1750749914021,38.44815143,146.1,146.02,3.36815143]
[1750749915323,6.8412,146.09,146.05,6.8423]
[1750749915621,38.44815143,146.1,146.05,6.8423]
[1750749915825,6.8413,146.08,146.05,6.8423]
[1750749916324,38.44815143,146.1,146.06,6.8421]
[1750749917016,35.08,146.1,146.0,8.47070106]
[1750749917223,35.08,146.1,146.04,3.36815143]
[1750749917618,35.08,146.1,146.09,6.8407]
[1750749917920,35.08,146.1,146.06,3.36815143]
[1750749918119,35.08,146.1,146.04,10.27045143]
[1750749918320,35.08,146.1,146.04,6.9023]
[1750749918917,41.9205,146.1,146.07,6.8414]
[1750749919621,35.08,146.1,146.08,6.8412]
[1750749920025,41.9203,146.1,146.07,6.8414]
[1750749920527,35.08,146.1,146.03,38.46815143]
[1750749920828,35.08,146.1,146.05,3.36815143]
[1750749921124,41.9205,146.1,146.07,6.8414]
[1750749921426,35.08,146.1,146.07,6.8414]
[1750749921615,41.9205,146.1,146.07,6.8414]
[1750749922524,35.08,146.1,146.03,38.46815143]
[1750749922825,35.08,146.1,146.05,3.36815143]
[1750749923326,35.08,146.1,146.08,6.8409]
[1750749923627,35.08,146.1,146.05,3.36815143]
[1750749924124,48.7799,146.13,146.05,3.36815143]
[1750749925126,48.7799,146.13,146.1,6.84]
[1750749925325,41.941,146.13,146.07,3.36815143]
[1750749925526,41.9385,146.14,146.12,6.8393]
[1750749926131,41.9385,146.14,146.11,6.8396]
[1750749926631,41.9385,146.14,146.09,3.36815143]
[1750749926632,6.8389,146.13,146.09,3.36815143]
[1750749926829,6.8389,146.13,146.1,6.84]
[1750749927031,41.9386,146.14,146.09,3.36815143]
[1750749927333,41.9386,146.14,146.11,6.8398]
[1750749927825,35.1,146.14,146.11,6.8398]
[1750749928031,35.1,146.14,146.12,6.8392]
[1750749928632,35.1,146.14,146.11,6.8396]
[1750749929631,35.1,146.14,146.12,6.8392]
[1750749930234,41.9385,146.14,146.11,6.8396]
[1750749931838,35.1,146.14,146.07,38.46815143]
[1750749932226,41.9385,146.14,146.11,6.8394]
[1750749932538,38.46815143,146.14,146.07,38.46815143]
[1750749932834,9.52044144,146.13,146.09,6.8403]
[1750749933136,38.46815143,146.14,146.09,6.8403]
[1750749933331,2.68123169,146.13,146.09,6.8403]
[1750749933542,38.46815143,146.14,146.09,6.8403]
[1750749933834,6.8396,146.12,146.09,6.8403]
[1750749934938,6.8398,146.11,146.08,6.841]
[1750749935440,38.46815143,146.14,146.05,10.22455143]
[1750749935738,2.68177435,146.13,146.05,18.69525249]
[1750749935931,9.52127435,146.12,146.05,18.69525249]
[1750749936132,6.8395,146.12,146.05,18.69525249]
[1750749936639,10.20765143,146.12,146.05,18.69525249]
[1750749936841,10.20765143,146.12,146.05,10.22455143]
[1750749937635,10.20765143,146.12,146.08,6.8408]
[1750749937837,10.20765143,146.12,146.05,10.22455143]
[1750749937838,3.36815143,146.12,146.05,18.69525249]
[1750749938345,3.36815143,146.12,146.09,6.8404]
[1750749938840,11.4908,146.13,146.09,6.8404]
[1750749939044,6.8394,146.12,146.09,6.8404]
[1750749940044,2.68251855,146.11,146.05,3.36815143]
[1750749940244,2.68251855,146.11,146.04,43.51070106]
[1750749940245,35.04,146.1,146.04,43.51070106]
[1750749941742,41.8805,146.1,146.04,43.51070106]
[1750749942140,41.8805,146.1,146.07,6.8414]
[1750749945647,35.04,146.1,146.07,6.8414]
[1750749945946,35.04,146.1,146.05,8.47070106]
[1750749946144,35.04,146.1,146.05,11.83885249]
[1750749946645,35.04,146.1,146.09,6.8408]
[1750749948641,37.72189311,146.1,146.05,3.36815143]
[1750749948843,35.04,146.1,146.05,3.36815143]
[1750749949244,35.04,146.1,146.04,43.51070106]
[1750749949645,41.8806,146.1,146.07,6.8414]
[1750749949848,35.04,146.1,146.05,3.36815143]
[1750749950044,35.04,146.1,146.05,11.83885249]
[1750749950242,35.04,146.1,146.05,3.36815143]
[1750749950753,35.04,146.1,146.08,6.8412]
[1750749951551,35.04,146.1,146.09,6.8408]
[1750749951756,37.72322403,146.1,146.09,6.8408]
[1750749951953,35.04,146.1,146.09,6.8408]
[1750749953554,37.72323679,146.1,146.09,6.8408]
[1750749955051,35.04,146.1,146.09,6.8408]
[1750749958451,37.72648076,146.1,146.09,6.8408]
[1750749959451,37.72664736,146.1,146.09,6.8408]
[1750749960154,37.72740831,146.1,146.09,6.8408]
[1750749960456,37.72740831,146.1,146.05,8.47070106]
[1750749960647,35.04,146.1,146.05,8.47070106]
[1750749960847,41.8806,146.1,146.07,6.8414]
[1750749961542,2.6884129,146.09,146.07,6.8414]
[1750749961746,41.8806,146.1,146.07,6.8414]
[1750749961949,2.68841955,146.09,146.07,6.8414]
[1750749962155,41.8806,146.1,146.07,6.8414]
[1750749962355,2.68734776,146.09,146.08,6.8412]
[1750749963156,2.68734776,146.09,146.07,6.8415]
[1750749963357,41.8803,146.1,146.07,6.8415]
[1750749963557,2.6874499,146.09,146.07,6.8415]
[1750749963757,41.8803,146.1,146.07,6.8415]
[1750749963957,3.36815143,146.08,146.03,8.47070106]
[1750749964148,2.68768674,146.07,146.03,8.47070106]
[1750749964465,3.37289333,146.08,146.03,8.47070106]
[1750749964762,2.68812457,146.07,146.03,8.47070106]
[1750749964951,2.68832301,146.06,146.04,6.8428]
[1750749965144,6.842,146.07,146.02,8.47070106]
[1750749965349,2.68828307,146.06,146.04,6.8428]
[1750749965657,6.842,146.07,146.04,6.8428]
[1750749965848,2.68822681,146.06,146.04,6.8428]
[1750749966044,6.842,146.07,146.04,6.8428]
[1750749967656,2.68231065,146.06,146.04,6.8428]
[1750749967943,6.842,146.07,146.04,6.8428]
[1750749968147,2.68232696,146.06,146.04,6.8428]
[1750749968355,6.842,146.07,146.04,6.8428]
[1750749968555,2.68113208,146.06,146.04,6.8428]
[1750749968862,6.842,146.07,146.04,6.8428]
[1750749970663,6.8422,146.06,146.03,6.8434]
[1750749970851,3.3727981,146.08,146.0,46.82349916]
[1750749971050,2.67926196,146.07,146.0,46.82349916]
[1750749971352,3.3727981,146.08,146.0,46.82349916]
[1750749971353,37.67926196,146.06,146.0,46.82349916]
[1750749971552,37.67926196,146.06,146.01,8.47070106]
[1750749971553,35.0,146.06,146.01,8.47070106]
[1750749972360,35.0,146.06,146.04,6.8427]
[1750749973356,41.8422,146.06,146.04,6.8427]
[1750749973561,35.0,146.06,146.04,6.8427]
[1750749976365,38.3727981,146.06,146.0,43.45070106]
[1750749976555,3.3727981,146.04,145.98,92.13952263]
[1750749976760,3.3727981,146.04,145.97,42.8710981]
[1750749976761,6.8443,146.02,145.99,6.8452]
[1750749977267,38.3727981,146.02,145.96,8.47070106]
[1750749977460,38.3727981,146.02,145.95,11.84349916]
[1750749977762,3.3727981,146.0,145.93,15.34960106]
[1750749978255,10.2181981,146.0,145.96,6.8467]
[1750749978759,6.8454,146.0,145.97,6.8464]
[1750749978966,38.3727981,146.02,145.94,3.3727981]
[1750749979658,38.3727981,146.02,145.94,11.84349916]
[1750749980169,35.0,146.02,145.96,3.3727981]
[1750749980754,35.0,146.02,146.0,6.8449]
[1750749980959,35.0,146.02,145.98,3.3727981]
[1750749981564,35.0,146.02,145.99,6.8453]
[1750749981758,35.0,146.02,145.98,3.3727981]
[1750749982264,35.0,146.02,146.0,6.8445]
[1750749983867,35.0,146.02,146.01,6.8445]
[1750749987065,41.8428,146.05,145.98,3.3727981]
[1750749987368,35.0,146.05,145.98,3.3727981]
[1750749987568,35.0,146.05,146.03,6.8433]
[1750749988671,41.8427,146.05,146.03,6.8433]
[1750749988970,35.0,146.05,146.03,6.8433]
[1750749989571,41.8426,146.05,146.03,6.8433]
[1750749989755,41.8426,146.05,146.02,6.8438]
[1750749990272,35.0,146.05,145.98,3.3727981]
[1750749990471,35.0,146.05,146.02,6.844]
[1750749990671,41.8429,146.05,146.02,6.844]
[1750749992364,41.8429,146.05,145.98,3.3727981]
[1750749992365,35.0,146.05,146.03,6.8435]
[1750749992977,35.0,146.05,146.0,3.3727981]
[1750749993268,34.94,146.08,146.02,3.3727981]
[1750749993479,34.94,146.08,146.06,6.8419]
[1750749994268,34.94,146.08,146.07,6.8417]
[1750749994472,34.94,146.08,146.02,3.3727981]
[1750749995373,41.7813,146.08,146.06,6.8419]
[1750749995570,34.94,146.08,146.06,6.8419]
[1750749996774,41.7813,146.08,146.05,6.8425]
[1750749997273,41.7813,146.08,146.02,3.3727981]
[1750749997274,34.94,146.08,146.06,6.8421]
[1750749997474,34.94,146.08,146.02,3.3727981]
[1750749998173,34.94,146.08,146.0,5.7828981]
[1750749998676,6.842,146.07,146.04,6.843]
[1750749998976,34.94,146.08,146.0,5.7828981]
[1750749999776,6.8422,146.06,146.03,6.8434]
[1750750000680,6.843,146.05,146.02,6.8439]
[1750750000878,3.3727981,146.05,145.99,4.4682]
[1750750001071,34.94,146.04,145.97,3.3727981]
[1750750001376,6.8443,146.02,145.97,3.3727981]
[1750750001572,3.3727981,146.03,145.97,3.3727981]
[1750750001975,6.844,146.02,145.99,6.8451]
[1750750002166,3.3727981,146.03,145.97,3.3727981]
[1750750002367,40.6470981,146.07,145.99,3.3727981]
[1750750002584,6.8423,146.06,146.03,6.8433]
[1750750006582,47.4889981,146.07,146.04,6.843]
[1750750007082,47.4889981,146.07,145.99,11.84349916]
[1750750007083,41.7819,146.07,146.01,3.3727981]
[1750750007571,34.94,146.07,146.01,3.3727981]
[1750750007772,38.3127981,146.07,146.03,6.8432]
[1750750007970,2.66866024,146.06,146.03,6.8432]
[1750750008184,38.3127981,146.07,146.03,6.8432]
[1750750008383,2.67034859,146.06,146.03,6.8432]
[1750750008583,6.8422,146.06,146.03,6.8432]
[1750750012895,45.1546981,146.07,146.04,6.8431]
[1750750013091,2.67271999,146.06,146.04,6.8431]
[1750750013393,45.1546981,146.07,146.04,6.8431]
[1750750013689,2.67266955,146.06,146.04,6.8431]
[1750750013884,45.1546981,146.07,146.04,6.8431]
[1750750014087,2.67275643,146.06,146.04,6.8431]
[1750750014287,45.1546981,146.07,146.03,6.8433]
[1750750014483,2.67227654,146.06,146.03,6.8433]
[1750750014684,45.1546981,146.07,146.03,6.8433]
[1750750014883,2.67224715,146.06,146.04,6.8431]
[1750750015084,34.94,146.07,146.01,3.3727981]
[1750750015887,34.94,146.07,146.03,3.3727981]
[1750750016094,34.94,146.07,146.05,6.8422]
[1750750016391,34.94,146.07,146.03,3.3727981]
[1750750016594,34.94,146.07,146.06,6.8421]
[1750750022083,34.94,146.1,146.08,6.8411]
[1750750022297,34.94,146.1,146.05,3.3727981]
[1750750022799,34.94,146.1,146.08,6.8408]
[1750750022990,34.94,146.1,146.05,3.3727981]
[1750750023486,34.94,146.1,146.09,6.8407]
[1750750023694,626.1,146.13,146.07,3.3727981]
[1750750023889,2.67529625,146.12,146.07,3.3727981]
[1750750024091,626.1,146.13,146.11,6.8398]
[1750750024292,2.6753201,146.12,146.11,6.8398]
[1750750024492,34.88,146.13,146.09,3.3727981]
[1750750025201,41.7189,146.13,146.1,6.84]
[1750750025589,34.88,146.13,146.07,3.3727981]
[1750750026499,34.88,146.13,146.11,6.8396]
[1750750026902,34.88,146.13,146.07,3.3727981]
[1750750027198,34.88,146.13,146.11,6.8396]
[1750750028795,34.88,146.13,146.12,6.8393]
[1750750032106,34.88,146.13,146.11,6.8396]
[1750750032604,34.88,146.13,146.06,3.3727981]
[1750750033002,6.8394,146.12,146.09,6.8405]
[1750750033705,34.88,146.13,146.08,3.3727981]
[1750750034107,6.8401,146.11,146.08,6.841]
[1750750034597,6.8405,146.1,146.07,6.8414]
[1750750035003,3.3727981,146.08,146.01,34.88]
[1750750035213,10.2142981,146.08,146.01,34.88]
[1750750035402,3.3727981,146.08,146.01,34.88]
[1750750036108,6.8417,146.07,146.04,6.8428]
[1750750036695,3.3727981,146.08,146.03,6.8432]
[1750750037308,6.842,146.07,146.03,6.8432]
[1750750037911,6.8423,146.06,146.03,6.8432]
[1750750039105,6.8419,146.07,146.0,3.3727981]
[1750750040705,6.8422,146.06,146.03,6.8433]
[1750750043018,6.8422,146.06,145.98,38.2527981]
[1750750043019,34.88,146.05,145.98,38.2527981]
[1750750043324,34.88,146.05,145.98,3.3727981]
[1750750043721,6.8432,146.04,146.01,6.8444]
[1750750051830,6.8436,146.03,146.0,6.8447]
[1750750052321,3.3727981,146.04,146.01,6.844]
[1750750052918,41.7231,146.05,145.98,3.3727981]
[1750750052919,34.88,146.05,145.98,3.3727981]
[1750750053519,34.88,146.05,146.03,6.8433]
[1750750059635,34.88,146.05,146.04,6.8431]
[1750750064738,34.88,146.05,146.0,8.0103981]
[1750750064940,38.2527981,146.05,146.02,6.8437]
[1750750066834,6.8431,146.04,146.02,6.8437]
[1750750068448,45.0955981,146.05,146.02,6.8437]
[1750750070347,41.7228,146.05,146.03,6.8435]
[1750750070541,34.88,146.05,146.03,6.8435]
[1750750071340,34.88,146.05,146.04,6.8431]
[1750750071841,34.88,146.05,146.0,3.3727981]
[1750750072739,34.88,146.05,146.03,6.8434]
[1750750073248,34.88,146.05,146.04,6.8431]
[1750750077643,41.6815,146.08,146.06,6.8421]
[1750750077844,2.69647765,146.07,146.06,6.8421]
[1750750078546,2.69647765,146.07,146.05,6.8424]
[1750750078739,2.69647765,146.06,146.05,6.8424]
[1750750078940,2.70359272,146.06,146.05,6.8424]
[1750750079950,2.70402894,146.06,146.05,6.8424]
[1750750080345,34.84,146.08,146.02,11.84349916]
[1750750080550,2.70390973,146.07,146.06,6.8419]
[1750750080843,34.84,146.08,146.03,8.47070106]
[1750750081145,34.84,146.08,146.07,6.8417]
[1750750081350,37.54423043,146.08,146.07,6.8417]
[1750750081651,34.84,146.08,146.07,6.8417]
[1750750085258,37.54278798,146.08,146.04,3.3727981]
[1750750085550,34.84,146.08,146.02,11.84349916]
[1750750085751,34.84,146.08,146.06,6.8421]
[1750750086850,41.6814,146.08,146.06,6.8421]
[1750750088552,34.84,146.08,146.06,6.8421]
[1750750089459,41.6813,146.08,146.05,6.8424]
[1750750091049,34.84,146.08,146.04,6.8429]
[1750750091265,2.7040136,146.07,146.04,6.8429]
[1750750091553,2.7040136,146.06,146.04,6.8429]
[1750750091748,6.8419,146.07,146.04,6.8429]
[1750750091955,2.70454057,146.06,146.04,6.8429]
[1750750092154,6.8419,146.07,146.04,6.8429]
[1750750092455,9.54682064,146.06,146.04,6.8429]
[1750750092653,6.8422,146.06,146.04,6.8429]
[1750750093549,6.8432,146.04,146.0,8.47070106]
[1750750093854,2.70520231,146.03,145.98,3.3727981]
[1750750094054,41.6232,146.04,145.98,3.3727981]
[1750750094254,2.70517463,146.03,145.98,3.3727981]
[1750750094454,34.78,146.04,145.98,3.3727981]
[1750750094654,2.70299867,146.03,145.98,3.3727981]
[1750750094854,34.78,146.04,146.01,6.8441]
[1750750095355,34.78,146.04,146.02,6.8439]
[1750750097453,34.78,146.04,145.99,8.47070106]
[1750750097757,34.78,146.04,145.98,11.84349916]
[1750750098054,34.78,146.04,146.02,6.8439]
[1750750099448,34.78,146.04,146.03,6.8435]
[1750750100152,34.78,146.04,146.02,6.8438]
[1750750102263,34.78,146.04,146.03,6.8435]
[1750750103158,37.47648284,146.04,146.02,6.8438]
[1750750103364,34.78,146.04,146.02,6.8438]
[1750750108864,6.8435,146.03,145.98,11.84349916]
[1750750109062,2.69612714,146.02,145.97,8.47070106]
[1750750109370,6.8476,145.95,145.9,8.47070106]
[1750750109557,38.15706973,145.96,145.9,8.47070106]
[1750750109759,34.78,145.95,145.9,8.47070106]
[1750750110060,41.6276,145.95,145.89,8.47070106]
[1750750110365,34.78,145.95,145.9,6.8493]
[1750750110767,34.78,145.95,145.88,11.84910729]
[1750750110959,34.78,145.95,145.86,54.57540155]
[1750750110960,3.37840623,145.92,145.87,8.47070106]
[1750750111162,3.37840623,145.92,145.86,15.54650106]
[1750750111363,10.22740623,145.92,145.87,6.8507]
[1750750111562,10.22740623,145.92,145.86,7.0758]
[1750750111757,7.84500623,145.94,145.86,7.0758]
[1750750112070,6.8483,145.93,145.86,18.92490729]
[1750750112266,6.8483,145.93,145.86,10.45420623]
[1750750112464,6.8483,145.93,145.88,6.8505]
[1750750112661,6.8483,145.93,145.86,10.45420623]
[1750750112966,7.84500623,145.94,145.86,18.92490729]
[1750750112967,14.69290623,145.94,145.86,18.92490729]
[1750750113165,14.69290623,145.94,145.86,10.45420623]
[1750750113755,11.3145,145.94,145.9,6.8494]
[1750750113963,38.15840623,145.95,145.88,3.37840623]
[1750750114458,6.8478,145.94,145.9,6.8493]
[1750750115764,6.8482,145.93,145.9,6.8493]
[1750750115966,6.8482,145.93,145.89,6.8498]
[1750750116168,10.22660623,145.93,145.89,6.8498]
[1750750118175,6.8486,145.92,145.89,6.8498]
[1750750118576,6.8486,145.92,145.88,6.8503]
[1750750118878,35.96,145.91,145.88,6.8503]
[1750750119376,42.8092,145.91,145.88,6.8503]
[1750750120178,35.96,145.91,145.88,6.8503]
[1750750122270,35.96,145.91,145.86,3.37840623]
[1750750122670,35.96,145.91,145.85,62.0]
[1750750122671,3.37840623,145.95,145.88,3.37840623]
[1750750122969,35.96,145.94,145.88,3.37840623]
[1750750123175,35.96,145.94,145.9,6.8493]
[1750750123369,6.8486,145.92,145.87,3.37840623]
[1750750123874,6.8486,145.92,145.89,6.8496]
[1750750125575,6.8486,145.92,145.87,3.37840623]
[1750750126481,6.8486,145.92,145.89,6.8498]
[1750750128276,6.8483,145.93,145.9,6.8495]
[1750750128475,35.96,145.94,145.9,3.37840623]
[1750750129074,35.96,145.94,145.88,3.37840623]
[1750750129677,121.13517776,145.98,145.91,3.37840623]
[1750750129977,35.96,145.97,145.91,3.37840623]
[1750750130774,6.8473,145.95,145.92,6.8482]
[1750750133384,3.37840623,145.96,145.89,3.37840623]
[1750750133582,35.96,145.97,145.89,3.37840623]
[1750750134473,2.96062385,145.96,145.89,3.37840623]
[1750750134673,35.96,145.97,145.89,3.37840623]
[1750750134982,6.8475,145.95,145.91,6.8486]
[1750750135171,35.96,145.97,145.91,6.8486]
[1750750135376,6.8477,145.94,145.91,6.8486]
[1750750135576,6.8477,145.94,145.92,6.8485]
[1750750136286,6.8474,145.95,145.92,6.8485]
[1750750136777,39.33840623,145.97,145.92,6.8485]
[1750750136982,2.96597529,145.96,145.92,6.8485]
[1750750137176,39.33840623,145.97,145.92,6.8485]
[1750750137378,6.8476,145.95,145.92,6.8485]
[1750750138180,42.8065,145.97,145.94,6.8475]
[1750750139079,35.96,145.97,145.93,3.37840623]
[1750750139582,35.96,145.97,145.95,3.37840623]
[1750750139781,45.77493887,146.0,145.91,35.96]
[1750750139975,42.8051,146.0,145.95,3.37840623]
[1750750140382,6.8453,145.99,145.97,6.846]
[1750750141387,6.8453,145.99,145.96,6.8466]
[1750750142381,6.8453,145.99,145.97,6.8462]
[1750750142782,6.8453,145.99,145.96,6.8465]
[1750750145590,3.37840623,145.97,145.86,12.71960155]
[1750750145787,38.93359035,145.96,145.88,7.81510623]
[1750750146088,36.84,145.95,145.88,7.81510623]
[1750750146896,36.84,145.95,145.9,6.8495]
[1750750147192,36.84,145.95,145.88,7.81510623]
[1750750147393,36.84,145.95,145.89,62.0]
[1750750147985,43.6874,145.95,145.91,6.8488]
[1750750151495,43.6874,145.95,145.92,6.8486]
[1750750152502,2.99338637,145.94,145.92,6.8486]
[1750750152704,43.6874,145.95,145.92,6.8486]
[1750750152895,2.99014524,145.94,145.92,6.8486]
[1750750153095,43.6874,145.95,145.92,6.8486]
[1750750153297,2.99041132,145.94,145.92,6.8486]
[1750750153501,43.6874,145.95,145.92,6.8486]
[1750750153703,9.83849356,145.94,145.91,6.8489]
[1750750153895,6.8479,145.94,145.91,6.8489]
[1750750154408,6.8483,145.93,145.9,6.8495]
[1750750155101,6.8486,145.92,145.89,6.8498]
[1750750155907,10.22680623,145.93,145.9,6.8495]
[1750750156997,3.37840623,145.93,145.91,6.8491]
[1750750157506,6.8479,145.94,145.91,6.8491]
[1750750158408,6.8483,145.93,145.9,6.8492]
[1750750158604,40.21840623,145.95,145.81,16.09978775]
[1750750158605,16.5169472,145.92,145.81,16.09978775]
[1750750158800,3.38172123,145.89,145.82,11.90873467]
[1750750159108,36.84,145.88,145.83,8.52701344]
[1750750159503,43.6906,145.88,145.85,6.8519]
[1750750160001,36.84,145.88,145.86,6.851]
[1750750160908,36.84,145.88,145.87,6.851]
[1750750161406,36.84,145.92,145.89,6.8497]
[1750750162200,36.84,145.92,145.88,6.8504]
[1750750162908,6.8492,145.91,145.88,6.8504]
[1750750163806,43.6888,145.92,145.89,6.8499]
[1750750164702,6.8491,145.91,145.85,18.74673467]
[1750750164901,36.84,145.92,145.85,18.74673467]
[1750750165213,36.84,145.92,145.87,3.38172123]
[1750750165703,36.84,145.92,145.91,6.8491]
[1750750166606,36.84,145.92,145.9,6.8494]
[1750750170709,6.8493,145.91,145.88,6.8502]
[1750750170912,36.84,145.92,145.85,18.74673467]
[1750750171312,43.6889,145.92,145.89,6.8498]
[1750750173013,36.84,145.92,145.85,8.52701344]
[1750750173210,40.22172123,145.92,145.84,11.90873467]
[1750750173739,6.8505,145.88,145.84,11.90873467]
[1750750174012,3.38172123,145.9,145.82,11.90873467]
[1750750174213,6.5937,145.91,145.82,11.90873467]
[1750750174404,6.8511,145.87,145.84,6.8521]
[1750750176417,6.8518,145.86,145.83,6.8526]
[1750750177114,6.8518,145.86,145.84,6.8523]
[1750750177413,6.8512,145.87,145.84,6.8523]
[1750750178217,43.6907,145.88,145.82,3.38172123]
[1750750178417,36.84,145.88,145.84,3.38172123]
[1750750179316,36.84,145.88,145.85,6.8518]
[1750750179513,36.84,145.88,145.83,3.38172123]
[1750750180209,6.8513,145.87,145.84,6.8522]
[1750750185416,6.8515,145.86,145.83,6.8527]
[1750750185723,36.84,145.88,145.81,3.38172123]
[1750750186021,6.852,145.85,145.82,6.853]
[1750750186620,36.84,145.88,145.82,3.38172123]
[1750750187122,43.6907,145.88,145.84,6.852]
[1750750187308,43.6907,145.88,145.82,3.38172123]
[1750750188322,43.6907,145.88,145.81,8.52701344]
[1750750188522,43.6907,145.88,145.85,6.8516]
[1750750189322,36.22,145.88,145.86,6.8513]
[1750750190717,43.0706,145.88,145.85,6.8516]
[1750750191109,43.0706,145.88,145.82,3.38172123]
[1750750191312,36.22,145.88,145.86,6.8513]
[1750750192324,43.0707,145.88,145.86,6.8513]
[1750750192517,36.22,145.88,145.86,6.8513]
[1750750193417,36.22,145.88,145.85,6.8517]
[1750750193614,43.0708,145.88,145.85,6.8517]
[1750750194624,36.22,145.88,145.81,8.52701344]
[1750750194823,6.05568553,145.87,145.79,8.52701344]